[Event "Junior-SM 2025"]
[Site "Uppsala, Sweden"]
[Date "2025.07.02"]
[Round "5.3"]
[White "Frank, Anton"]
[Black "Wernber, Hugo"]
[Result "0-1"]
[TimeControl "90 min for 40 move + 30 min with an increment of 30 sec starting move 1"]
[WhiteTitle "CM"]
[BlackTitle "FM"]
[WhiteFideId "1752383"]
[BlackFideId "1737511"]
[WhiteElo "2183"]
[BlackElo "2247"]

1. e4 {[%clk 01:30:56]} {[%emt 00:00:04]} c5 {[%clk 01:29:33]} {[%emt
00:01:27]} 2. Nf3 {[%clk 01:31:19]} {[%emt 00:00:07]} d6 {[%clk 01:29:59]}
{[%emt 00:00:05]} 3. d4 {[%clk 01:31:33]} {[%emt 00:00:15]} cxd4 {[%clk
01:30:24]} {[%emt 00:00:06]} 4. Nxd4 {[%clk 01:31:57]} {[%emt 00:00:06]} Nf6
{[%clk 01:30:48]} {[%emt 00:00:05]} 5. Nc3 {[%clk 01:32:21]} {[%emt 00:00:06]}
a6 {[%clk 01:31:14]} {[%emt 00:00:05]} 6. Be2 {[%clk 01:31:43]} {[%emt
00:01:08]} e5 {[%clk 01:31:31]} {[%emt 00:00:13]} 7. Nb3 {[%clk 01:32:07]}
{[%emt 00:00:05]} Be7 {[%clk 01:31:57]} {[%emt 00:00:05]} 8. Be3 {[%clk
01:29:47]} {[%emt 00:02:50]} Be6 {[%clk 01:31:42]} {[%emt 00:00:45]} 9. Nd5
{[%clk 01:28:50]} {[%emt 00:01:26]} Nxd5 {[%clk 01:27:05]} {[%emt 00:05:08]} 10.
exd5 {[%clk 01:29:06]} {[%emt 00:00:14]} Bf5 {[%clk 01:26:57]} {[%emt
00:00:38]} 11. Qd2 {[%clk 01:27:27]} {[%emt 00:02:09]} b6 {[%clk 01:22:49]}
{[%emt 00:04:39]} 12. O-O {[%clk 01:23:57]} {[%emt 00:03:58]} O-O {[%clk
01:15:04]} {[%emt 00:08:16]} 13. c4 {[%clk 01:17:00]} {[%emt 00:07:27]} Nd7
{[%clk 00:59:46]} {[%emt 00:15:48]} 14. Rac1 {[%clk 01:00:46]} {[%emt
00:16:43]} a5 {[%clk 00:52:10]} {[%emt 00:08:07]} 15. Na1 {[%clk 00:51:42]}
{[%emt 00:09:34]} g5 {[%clk 00:46:02]} {[%emt 00:06:38]} 16. h4 {[%clk
00:43:18]} {[%emt 00:08:53]} h6 {[%clk 00:33:20]} {[%emt 00:13:13]} 17. g3
{[%clk 00:37:46]} {[%emt 00:06:01]} Nc5 {[%clk 00:31:43]} {[%emt 00:02:08]} 18.
f3 {[%clk 00:35:10]} {[%emt 00:03:06]} Bg6 {[%clk 00:30:03]} {[%emt 00:02:10]}
19. Nc2 {[%clk 00:32:16]} {[%emt 00:03:24]} f5 {[%clk 00:28:04]} {[%emt
00:02:29]} 20. hxg5 {[%clk 00:31:20]} {[%emt 00:01:26]} hxg5 {[%clk 00:25:21]}
{[%emt 00:03:14]} 21. b4 {[%clk 00:26:52]} {[%emt 00:04:58]} axb4 {[%clk
00:18:12]} {[%emt 00:07:39]} 22. Nxb4 {[%clk 00:27:14]} {[%emt 00:00:07]} f4
{[%clk 00:17:11]} {[%emt 00:01:31]} 23. gxf4 {[%clk 00:23:55]} {[%emt
00:03:50]} gxf4 {[%clk 00:17:17]} {[%emt 00:00:24]} 24. Bxc5 {[%clk 00:24:02]}
{[%emt 00:00:23]} bxc5 {[%clk 00:16:22]} {[%emt 00:01:25]} 25. Nc6 {[%clk
00:24:31]} {[%emt 00:00:01]} Qe8 {[%clk 00:15:09]} {[%emt 00:01:42]} 26. Nxe7+
{[%clk 00:10:29]} {[%emt 00:14:32]} Qxe7 {[%clk 00:15:34]} {[%emt 00:00:05]} 27.
Rf2 {[%clk 00:10:47]} {[%emt 00:00:11]} Kf7 {[%clk 00:15:21]} {[%emt 00:00:44]}
28. Bd3 {[%clk 00:08:33]} {[%emt 00:02:44]} Rg8 {[%clk 00:14:41]} {[%emt
00:01:10]} 29. Kf1 {[%clk 00:08:55]} {[%emt 00:00:08]} Bh5 {[%clk 00:13:43]}
{[%emt 00:01:28]} 30. Bf5 {[%clk 00:02:30]} {[%emt 00:06:55]} Rg3 {[%clk
00:12:18]} {[%emt 00:01:55]} 31. Qd3 {[%clk 00:01:06]} {[%emt 00:01:54]} Qh4
{[%clk 00:11:13]} {[%emt 00:01:36]} 32. Be6+ {[%clk 00:01:20]} {[%emt
00:00:16]} Kg7 {[%clk 00:10:14]} {[%emt 00:01:28]} 33. Qb1 {[%clk 00:00:53]}
{[%emt 00:00:58]} Bxf3 {[%clk 00:09:11]} {[%emt 00:01:33]} 34. Ke1 {[%clk
00:00:40]} {[%emt 00:00:42]} Rg1+ {[%clk 00:09:30]} {[%emt 00:00:11]} 0-1

[Event "Junior-SM 2025"]
[Site "Uppsala, Sweden"]
[Date "2025.07.02"]
[Round "5.4"]
[White "Karlsson, Stefan"]
[Black "Nilsson, Oliver"]
[Result "0-1"]
[TimeControl "90 min for 40 move + 30 min with an increment of 30 sec starting move 1"]
[WhiteFideId "1771183"]
[BlackFideId "1730177"]
[WhiteElo "2126"]
[BlackElo "2129"]

1. b3 {[%clk 01:26:08]} {[%emt 00:04:51]} e5 {[%clk 01:30:40]} {[%emt
00:00:21]} 2. Bb2 {[%clk 01:26:29]} {[%emt 00:00:09]} Nc6 {[%clk 01:30:50]}
{[%emt 00:00:21]} 3. c4 {[%clk 01:26:10]} {[%emt 00:00:48]} Nge7 {[%clk
01:30:57]} {[%emt 00:00:23]} 4. e3 {[%clk 01:25:55]} {[%emt 00:00:45]} d5
{[%clk 01:31:08]} {[%emt 00:00:19]} 5. cxd5 {[%clk 01:26:20]} {[%emt 00:00:05]}
Nxd5 {[%clk 01:31:34]} {[%emt 00:00:04]} 6. a3 {[%clk 01:25:49]} {[%emt
00:01:01]} f6 {[%clk 01:31:12]} {[%emt 00:00:52]} 7. Qc2 {[%clk 01:22:58]}
{[%emt 00:03:21]} Be6 {[%clk 01:30:40]} {[%emt 00:01:02]} 8. Nf3 {[%clk
01:21:26]} {[%emt 00:02:02]} Qd7 {[%clk 01:30:28]} {[%emt 00:00:43]} 9. b4
{[%clk 01:21:30]} {[%emt 00:00:25]} O-O-O {[%clk 01:29:54]} {[%emt 00:01:04]}
10. b5 {[%clk 01:21:21]} {[%emt 00:00:39]} Na5 {[%clk 01:29:55]} {[%emt
00:00:29]} 11. d4 {[%clk 01:21:24]} {[%emt 00:00:26]} e4 {[%clk 01:29:25]}
{[%emt 00:01:01]} 12. Nfd2 {[%clk 01:21:40]} {[%emt 00:00:14]} f5 {[%clk
01:29:23]} {[%emt 00:00:33]} 13. Nc3 {[%clk 01:21:57]} {[%emt 00:00:12]} Nb6
{[%clk 01:28:49]} {[%emt 00:01:04]} 14. Na4 {[%clk 01:13:55]} {[%emt 00:08:31]}
Nd5 {[%clk 01:14:05]} {[%emt 00:15:15]} 15. Nc5 {[%clk 01:01:27]} {[%emt
00:12:57]} Bxc5 {[%clk 01:14:20]} {[%emt 00:00:16]} 16. dxc5 {[%clk 01:01:45]}
{[%emt 00:00:13]} Kb8 {[%clk 01:11:12]} {[%emt 00:03:37]} 17. O-O-O {[%clk
00:55:26]} {[%emt 00:06:47]} Qe7 {[%clk 00:59:51]} {[%emt 00:11:52]} 18. Bd4
{[%clk 00:46:40]} {[%emt 00:09:16]} b6 {[%clk 00:44:48]} {[%emt 00:15:34]} 19.
Kb2 {[%clk 00:43:26]} {[%emt 00:03:44]} Nf6 {[%clk 00:35:33]} {[%emt 00:09:46]}
20. Rc1 {[%clk 00:26:37]} {[%emt 00:17:18]} Ng4 {[%clk 00:28:00]} {[%emt
00:08:03]} 21. f3 {[%clk 00:24:43]} {[%emt 00:02:24]} Rxd4 {[%clk 00:22:49]}
{[%emt 00:05:41]} 22. exd4 {[%clk 00:18:20]} {[%emt 00:06:52]} Ne3 {[%clk
00:23:14]} {[%emt 00:00:06]} 23. Qa4 {[%clk 00:18:03]} {[%emt 00:00:48]} Rd8
{[%clk 00:22:07]} {[%emt 00:01:36]} 24. fxe4 {[%clk 00:16:17]} {[%emt
00:02:16]} fxe4 {[%clk 00:20:20]} {[%emt 00:02:18]} 25. Re1 {[%clk 00:09:18]}
{[%emt 00:07:28]} Qf6 {[%clk 00:17:07]} {[%emt 00:03:43]} 26. Nxe4 {[%clk
00:07:50]} {[%emt 00:01:57]} Qf4 {[%clk 00:17:24]} {[%emt 00:00:14]} 27. Bd3
{[%clk 00:04:08]} {[%emt 00:04:12]} Nac4+ {[%clk 00:14:31]} {[%emt 00:03:23]}
28. Kc3 {[%clk 00:03:22]} {[%emt 00:01:16]} Rxd4 {[%clk 00:14:07]} {[%emt
00:00:54]} 29. c6 {[%clk 00:00:56]} {[%emt 00:02:56]} Rxd3+ {[%clk 00:12:24]}
{[%emt 00:02:13]} 0-1

[Event "Junior-SM 2025"]
[Site "Uppsala, Sweden"]
[Date "2025.07.02"]
[Round "5.5"]
[White "Religa, Marek"]
[Black "Grahn, Vidar"]
[Result "1/2-1/2"]
[TimeControl "90 min for 40 move + 30 min with an increment of 30 sec starting move 1"]
[BlackTitle "FM"]
[WhiteFideId "1750208"]
[BlackFideId "1744780"]
[WhiteElo "2228"]
[BlackElo "2239"]

1. e4 {[%clk 01:30:58]} {[%emt 00:00:02]} c5 {[%clk 01:30:49]} {[%emt
00:00:11]} 2. Nf3 {[%clk 01:31:08]} {[%emt 00:00:20]} e6 {[%clk 01:30:23]}
{[%emt 00:00:56]} 3. c3 {[%clk 01:31:28]} {[%emt 00:00:10]} Nf6 {[%clk
01:28:04]} {[%emt 00:02:49]} 4. Bd3 {[%clk 01:31:20]} {[%emt 00:00:38]} d5
{[%clk 01:28:28]} {[%emt 00:00:06]} 5. e5 {[%clk 01:31:43]} {[%emt 00:00:07]}
Nfd7 {[%clk 01:28:54]} {[%emt 00:00:03]} 6. Bc2 {[%clk 01:31:54]} {[%emt
00:00:19]} c4 {[%emt 00:00:51]} 7. d4 {[%clk 01:31:39]} {[%emt 00:00:01]} cxd3
{[%clk 01:29:42]} {[%emt 00:00:04]} 8. Bxd3 {[%clk 01:31:21]} {[%emt 00:00:49]}
Nc6 {[%clk 01:28:08]} {[%emt 00:02:03]} 9. Qe2 {[%clk 01:31:37]} {[%emt
00:00:14]} Be7 {[%clk 01:24:33]} {[%emt 00:04:05]} 10. O-O {[%clk 01:31:26]}
{[%emt 00:00:40]} g5 {[%clk 01:20:06]} {[%emt 00:04:58]} 11. Bb5 {[%clk
01:27:53]} {[%emt 00:04:03]} Rg8 {[%clk 01:09:11]} {[%emt 00:11:25]} 12. Nd4
{[%clk 01:20:03]} {[%emt 00:08:20]} Qc7 {[%clk 01:00:21]} {[%emt 00:09:20]} 13.
f4 {[%clk 01:20:17]} {[%emt 00:00:16]} Bc5 {[%clk 00:57:39]} {[%emt 00:03:12]}
14. Bxc6 {[%clk 01:13:45]} {[%emt 00:07:02]} bxc6 {[%clk 00:57:44]} {[%emt
00:00:25]} 15. fxg5 {[%clk 00:56:16]} {[%emt 00:17:58]} Qxe5 {[%clk 00:54:40]}
{[%emt 00:03:35]} 16. Qf2 {[%clk 00:55:15]} {[%emt 00:01:31]} Qg7 {[%clk
00:51:38]} {[%emt 00:03:32]} 17. Be3 {[%clk 00:48:20]} {[%emt 00:07:25]} Ba6
{[%clk 00:39:39]} {[%emt 00:12:29]} 18. Re1 {[%clk 00:48:45]} {[%emt 00:00:05]}
Bxd4 {[%clk 00:33:42]} {[%emt 00:06:26]} 19. cxd4 {[%clk 00:49:10]} {[%emt
00:00:06]} Nb6 {[%clk 00:28:27]} {[%emt 00:05:45]} 20. b3 {[%clk 00:48:14]}
{[%emt 00:01:26]} Bd3 {[%clk 00:25:41]} {[%emt 00:03:16]} 21. Nd2 {[%clk
00:47:19]} {[%emt 00:01:26]} Be4 {[%clk 00:21:32]} {[%emt 00:04:38]} 22. Rac1
{[%clk 00:44:24]} {[%emt 00:03:25]} Rc8 {[%clk 00:18:54]} {[%emt 00:03:07]} 23.
Rc3 {[%clk 00:42:07]} {[%emt 00:02:47]} f5 {[%clk 00:18:07]} {[%emt 00:01:18]}
24. Rec1 {[%clk 00:40:07]} {[%emt 00:02:29]} Kd7 {[%clk 00:16:57]} {[%emt
00:01:40]} 25. Nxe4 {[%clk 00:30:27]} {[%emt 00:10:10]} dxe4 {[%clk 00:14:06]}
{[%emt 00:03:22]} 26. Qc2 {[%clk 00:30:41]} {[%emt 00:00:16]} Ke8 {[%clk
00:11:47]} {[%emt 00:02:48]} 27. Rxc6 {[%clk 00:25:36]} {[%emt 00:05:34]} Rxc6
{[%clk 00:11:47]} {[%emt 00:00:30]} 28. Qxc6+ {[%clk 00:26:05]} {[%emt
00:00:02]} Qd7 {[%clk 00:12:06]} {[%emt 00:00:11]} 29. Bf4 {[%clk 00:22:57]}
{[%emt 00:03:38]} Nd5 {[%clk 00:06:48]} {[%emt 00:05:48]} 30. g3 {[%clk
00:21:50]} {[%emt 00:01:37]} Ke7 {[%clk 00:02:57]} {[%emt 00:04:20]} 31. a3
{[%clk 00:17:20]} {[%emt 00:05:01]} Rd8 {[%clk 00:02:36]} {[%emt 00:00:50]} 32.
Be5 {[%clk 00:11:37]} {[%emt 00:06:14]} Kf7 {[%clk 00:03:00]} {[%emt 00:00:05]}
33. Qxd7+ {[%clk 00:11:18]} {[%emt 00:00:50]} Rxd7 {[%clk 00:03:26]} {[%emt
00:00:04]} 34. Rc8 {[%clk 00:08:15]} {[%emt 00:03:33]} Ne7 {[%clk 00:03:06]}
{[%emt 00:00:50]} 35. Rh8 {[%clk 00:07:05]} {[%emt 00:01:40]} Kg6 {[%clk
00:03:25]} {[%emt 00:00:11]} 36. h4 {[%clk 00:06:31]} {[%emt 00:01:05]} Nc6
{[%clk 00:03:39]} {[%emt 00:00:15]} 37. Re8 {[%clk 00:05:45]} {[%emt 00:01:15]}
Nxd4 {[%clk 00:02:54]} {[%emt 00:01:15]} 38. Bxd4 {[%clk 00:05:58]} {[%emt
00:00:18]} Rxd4 {[%clk 00:03:14]} {[%emt 00:00:10]} 39. Rxe6+ {[%clk 00:06:24]}
{[%emt 00:00:04]} Kh5 {[%clk 00:03:32]} {[%emt 00:00:11]} 40. Kf2 {[%clk
00:04:17]} {[%emt 00:02:37]} Rd3 {[%clk 00:01:55]} {[%emt 00:02:07]} 41. Rh6+
{[%clk 00:23:10]} {[%emt 00:11:37]} Kg4 {[%clk 00:32:20]} {[%emt 00:00:04]} 42.
g6 {[%clk 00:23:24]} {[%emt 00:00:16]} Rf3+ {[%clk 00:30:56]} {[%emt 00:01:54]}
43. Ke2 {[%clk 00:23:41]} {[%emt 00:00:13]} hxg6 {[%clk 00:31:11]} {[%emt
00:00:14]} 44. Rxg6+ {[%clk 00:24:09]} {[%emt 00:00:03]} Kh5 {[%clk 00:31:22]}
{[%emt 00:00:16]} 45. Rg5+ {[%clk 00:23:34]} {[%emt 00:01:07]} Kh6 {[%clk
00:31:46]} {[%emt 00:00:07]} 46. b4 {[%clk 00:19:17]} {[%emt 00:04:47]} Rxa3
{[%clk 00:31:31]} {[%emt 00:00:45]} 47. Rxf5 {[%clk 00:19:15]} {[%emt
00:00:31]} Rxg3 {[%clk 00:30:42]} {[%emt 00:01:20]} 48. Rf4 {[%clk 00:12:14]}
{[%emt 00:07:31]} e3 {[%clk 00:30:14]} {[%emt 00:00:58]} 49. b5 {[%clk
00:09:50]} {[%emt 00:02:53]} Rg7 {[%clk 00:20:45]} {[%emt 00:09:58]} 50. Kxe3
{[%clk 00:09:38]} {[%emt 00:00:43]} Rb7 {[%clk 00:21:06]} {[%emt 00:00:09]} 51.
Rf5 {[%clk 00:08:56]} {[%emt 00:01:12]} Rb6 {[%clk 00:20:51]} {[%emt 00:00:45]}
52. Rc5 {[%clk 00:09:22]} {[%emt 00:00:04]} Kg7 {[%clk 00:20:08]} {[%emt
00:01:13]} 53. Kf4 {[%clk 00:07:42]} {[%emt 00:02:10]} a6 {[%clk 00:20:27]}
{[%emt 00:00:12]} 54. bxa6 {[%clk 00:07:56]} {[%emt 00:00:16]} Rxa6 {[%clk
00:20:50]} {[%emt 00:00:07]} 55. h5 {[%clk 00:08:23]} {[%emt 00:00:02]} 1/2-1/2

[Event "Junior-SM 2025"]
[Site "Uppsala, Sweden"]
[Date "2025.07.01"]
[Round "4.1"]
[White "Valcu, Lavinia"]
[Black "Sandberg, Lucas"]
[Result "0-1"]
[TimeControl "90 min for 40 move + 30 min with an increment of 30 sec starting move 1"]
[WhiteFideId "1752197"]
[BlackFideId "1773712"]
[WhiteElo "2127"]
[BlackElo "2243"]

1. e4 {[%clk 01:30:56]} {[%emt 00:00:03]} e6 {[%clk 01:30:45]} {[%emt
00:00:17]} 2. d4 {[%clk 01:31:02]} {[%emt 00:00:23]} d5 {[%clk 01:31:09]}
{[%emt 00:00:07]} 3. Nc3 {[%clk 01:31:24]} {[%emt 00:00:08]} Nf6 {[%clk
01:31:31]} {[%emt 00:00:07]} 4. e5 {[%clk 01:30:30]} {[%emt 00:01:24]} Ng8
{[%clk 01:31:51]} {[%emt 00:00:10]} 5. f4 {[%clk 01:29:27]} {[%emt 00:01:33]}
c5 {[%clk 01:31:54]} {[%emt 00:00:27]} 6. Nf3 {[%clk 01:29:41]} {[%emt
00:00:17]} Nh6 {[%clk 01:32:19]} {[%emt 00:00:04]} 7. Ne2 {[%clk 01:26:48]}
{[%emt 00:03:24]} Nc6 {[%clk 01:30:35]} {[%emt 00:02:14]} 8. c3 {[%clk
01:26:31]} {[%emt 00:00:47]} Nf5 {[%clk 01:29:55]} {[%emt 00:01:09]} 9. Ng3
{[%clk 01:22:29]} {[%emt 00:04:31]} Nxg3 {[%clk 01:20:58]} {[%emt 00:09:28]} 10.
hxg3 {[%clk 01:19:55]} {[%emt 00:03:04]} Qb6 {[%clk 01:20:50]} {[%emt
00:00:38]} 11. a3 {[%clk 01:02:44]} {[%emt 00:17:40]} a5 {[%clk 01:11:19]}
{[%emt 00:10:01]} 12. Bd3 {[%clk 00:44:59]} {[%emt 00:18:15]} cxd4 {[%clk
00:57:51]} {[%emt 00:13:59]} 13. cxd4 {[%clk 00:41:27]} {[%emt 00:04:01]} Bd7
{[%clk 00:56:30]} {[%emt 00:01:51]} 14. Qe2 {[%clk 00:19:58]} {[%emt 00:22:00]}
Rc8 {[%clk 00:50:15]} {[%emt 00:06:44]} 15. Be3 {[%clk 00:18:49]} {[%emt
00:01:39]} Be7 {[%clk 00:41:24]} {[%emt 00:09:21]} 16. Kf2 {[%clk 00:16:31]}
{[%emt 00:02:48]} a4 {[%clk 00:35:40]} {[%emt 00:06:14]} 17. Rac1 {[%clk
00:05:56]} {[%emt 00:11:06]} Na5 {[%clk 00:34:20]} {[%emt 00:01:50]} 18. Rxc8+
{[%clk 00:06:19]} {[%emt 00:00:07]} Bxc8 {[%clk 00:34:44]} {[%emt 00:00:05]} 19.
g4 {[%clk 00:06:29]} {[%emt 00:00:20]} Nc4 {[%clk 00:33:40]} {[%emt 00:01:34]}
20. Bxc4 {[%clk 00:06:17]} {[%emt 00:00:43]} dxc4 {[%clk 00:33:41]} {[%emt
00:00:29]} 21. Kg3 {[%clk 00:02:46]} {[%emt 00:04:01]} Qc6 {[%clk 00:33:11]}
{[%emt 00:01:00]} 22. d5 {[%clk 00:01:22]} {[%emt 00:01:54]} Qxd5 {[%clk
00:29:07]} {[%emt 00:04:33]} 23. Rd1 {[%clk 00:01:43]} {[%emt 00:00:10]} Qc6
{[%clk 00:29:23]} {[%emt 00:00:13]} 24. Nd4 {[%clk 00:01:57]} {[%emt 00:00:16]}
Qa6 {[%clk 00:29:52]} 25. f5 {[%clk 00:00:46]} {[%emt 00:01:42]} b5 {[%clk
00:29:08]} {[%emt 00:01:13]} 26. Qf2 {[%emt 00:03:15]} h5 {[%clk 00:27:05]} 27.
f6 {[%clk 00:00:34]} {[%emt 00:00:29]} gxf6 {[%clk 00:25:36]} {[%emt 00:01:59]}
28. exf6 {[%clk 00:01:02]} {[%emt 00:00:03]} Bd6+ {[%clk 00:25:59]} {[%emt
00:00:06]} 29. Bf4 {[%clk 00:01:28]} {[%emt 00:00:04]} Rg8 {[%clk 00:25:41]}
{[%emt 00:00:48]} 30. Kh2 {[%emt 00:01:40]} Rxg4 {[%clk 00:25:24]} {[%emt
00:00:33]} 31. Nxe6 {[%clk 00:00:40]} {[%emt 00:00:22]} Bxf4+ {[%clk 00:18:07]}
{[%emt 00:07:47]} 32. Qxf4 {[%clk 00:00:47]} {[%emt 00:00:24]} Qxe6 {[%clk
00:17:04]} {[%emt 00:01:32]} 33. Qc7 {[%clk 00:00:39]} {[%emt 00:00:38]} Rh4+
{[%clk 00:15:46]} {[%emt 00:01:48]} 34. Kg3 {[%clk 00:01:00]} {[%emt 00:00:09]}
Qg4+ {[%clk 00:16:06]} {[%emt 00:00:09]} 35. Kf2 {[%clk 00:01:26]} {[%emt
00:00:05]} Qf4+ {[%clk 00:16:35]} 36. Qxf4 {[%clk 00:01:10]} {[%emt 00:00:46]}
Rxf4+ {[%clk 00:16:56]} {[%emt 00:00:09]} 37. Ke3 {[%clk 00:01:37]} {[%emt
00:00:03]} Rxf6 {[%clk 00:17:20]} {[%emt 00:00:05]} 38. Rd5 {[%clk 00:02:05]}
{[%emt 00:00:04]} Rf5 {[%clk 00:17:27]} {[%emt 00:00:23]} 0-1

[Event "Junior-SM 2025"]
[Site "Uppsala, Sweden"]
[Date "2025.07.01"]
[Round "4.2"]
[White "Ral Lustig, Melvin"]
[Black "Frank, Anton"]
[Result "1-0"]
[TimeControl "90 min for 40 move + 30 min with an increment of 30 sec starting move 1"]
[WhiteTitle "CM"]
[BlackTitle "CM"]
[WhiteFideId "1764195"]
[BlackFideId "1752383"]
[WhiteElo "2233"]
[BlackElo "2183"]

1. c4 {[%clk 01:30:58]} {[%emt 00:00:02]} e5 {[%clk 01:30:34]} {[%emt
00:00:26]} 2. Nc3 {[%clk 01:31:20]} {[%emt 00:00:09]} d6 {[%clk 01:30:58]}
{[%emt 00:00:05]} 3. e3 {[%clk 01:30:28]} {[%emt 00:01:21]} f5 {[%clk
01:30:14]} {[%emt 00:01:14]} 4. d4 {[%clk 01:30:32]} {[%emt 00:00:27]} Nf6
{[%clk 01:30:16]} {[%emt 00:00:28]} 5. dxe5 {[%clk 01:30:10]} {[%emt 00:00:53]}
dxe5 {[%clk 01:30:36]} {[%emt 00:00:09]} 6. Qxd8+ {[%clk 01:30:36]} {[%emt
00:00:03]} Kxd8 {[%clk 01:30:58]} {[%emt 00:00:09]} 7. b3 {[%clk 01:30:33]}
{[%emt 00:00:34]} c6 {[%clk 01:25:36]} {[%emt 00:05:51]} 8. Bb2 {[%clk
01:29:52]} {[%emt 00:01:11]} Bd6 {[%clk 01:22:42]} {[%emt 00:03:24]} 9. O-O-O
{[%clk 01:28:36]} {[%emt 00:01:46]} Ke7 {[%clk 01:22:49]} {[%emt 00:00:23]} 10.
g3 {[%clk 01:16:04]} {[%emt 00:13:02]} Be6 {[%clk 01:18:41]} {[%emt 00:04:37]}
11. Nf3 {[%clk 01:13:06]} {[%emt 00:03:28]} Nbd7 {[%clk 01:14:31]} {[%emt
00:04:40]} 12. Ng5 {[%clk 01:12:00]} {[%emt 00:01:37]} Bg8 {[%clk 01:11:23]}
{[%emt 00:03:36]} 13. Bh3 {[%clk 01:05:55]} {[%emt 00:06:36]} g6 {[%clk
01:07:40]} {[%emt 00:04:13]} 14. e4 {[%clk 00:58:28]} {[%emt 00:07:57]} h6
{[%clk 01:00:51]} {[%emt 00:07:18]} 15. Nf3 {[%clk 00:58:43]} {[%emt 00:00:16]}
fxe4 {[%clk 00:54:33]} {[%emt 00:06:48]} 16. Nh4 {[%clk 00:58:55]} {[%emt
00:00:19]} Bf7 {[%clk 00:54:35]} {[%emt 00:00:27]} 17. Bxd7 {[%clk 00:58:50]}
{[%emt 00:00:35]} Nxd7 {[%clk 00:54:57]} {[%emt 00:00:07]} 18. Nxe4 {[%clk
00:59:11]} {[%emt 00:00:09]} Bb4 {[%clk 00:46:41]} {[%emt 00:08:47]} 19. a3
{[%clk 00:58:28]} {[%emt 00:01:13]} Ba5 {[%clk 00:40:48]} {[%emt 00:06:23]} 20.
Nd6 {[%clk 00:57:31]} {[%emt 00:01:26]} Rhf8 {[%clk 00:39:51]} {[%emt
00:01:28]} 21. Nxf7 {[%clk 00:54:17]} {[%emt 00:03:45]} Rxf7 {[%clk 00:40:00]}
{[%emt 00:00:20]} 22. Nxg6+ {[%clk 00:54:40]} {[%emt 00:00:07]} Ke6 {[%clk
00:38:54]} {[%emt 00:01:36]} 23. f4 {[%emt 00:09:37]} exf4 {[%clk 00:35:52]}
{[%emt 00:00:01]} 24. Nxf4+ {[%clk 00:49:08]} {[%emt 00:00:25]} Kf5 {[%clk
00:35:12]} {[%emt 00:01:11]} 25. Rhf1 {[%clk 00:48:12]} {[%emt 00:01:26]} Kg4
{[%clk 00:35:26]} {[%emt 00:00:16]} 26. Rd6 {[%clk 00:29:46]} {[%emt 00:18:57]}
Rh7 {[%clk 00:24:13]} {[%emt 00:11:42]} 27. Rg6+ {[%clk 00:29:30]} {[%emt
00:00:46]} Kf5 {[%clk 00:24:35]} {[%emt 00:00:08]} 28. g4+ {[%clk 00:29:47]}
{[%emt 00:00:13]} Ke4 {[%clk 00:24:55]} {[%emt 00:00:10]} 29. Re6+ {[%clk
00:30:13]} {[%emt 00:00:04]} 1-0